fUST/lending_fUST_20240927
["ID","MTS","AMOUNT","RATE_DAILY","PERIOD"]
[339254769,1727406642160,-500.0,0.00019178,2]
[339254770,1727406642170,-500.0,0.00019178,2]
[339254771,1727406642179,-500.0,0.00019178,2]
[339254772,1727406642188,-500.0,0.00019178,2]
[339254773,1727406642197,-519.79375099,0.00019178,2]
[339254774,1727406642206,-500.0,0.00019178,2]
[339254775,1727406642215,-500.0,0.00019178,2]
[339254776,1727406642225,-506.26085563,0.00019178,2]
[339254777,1727406642234,-508.23475484,0.00019178,2]
[339254778,1727406642243,-504.11027069,0.00019178,2]
[339254779,1727406642252,-500.0,0.00019178,2]
[339254780,1727406642261,-328.18284378,0.00019178,2]
[339254781,1727406642271,-500.0,0.00019178,2]
[339254782,1727406642280,-502.21952152,0.00019178,2]
[339254783,1727406642289,-220.05,0.00019178,2]
[339254784,1727406642300,-504.87313067,0.00019178,2]
[339254785,1727406642309,-500.0,0.00019178,2]
[339254786,1727406642318,-2234.67,0.00019178,2]
[339254787,1727406642328,-500.0,0.00019178,2]
[339254788,1727406642338,-500.0,0.00019178,2]
[339254789,1727406642347,-591.51753647,0.00019178,2]
[339254790,1727406642356,-527.50529191,0.00019178,2]
[339254791,1727406642365,-501.58246172,0.00019178,2]
[339254792,1727406642375,-500.0,0.00019178,2]
[339254793,1727406642384,-505.35261575,0.00019178,2]
[339254794,1727406642393,-503.98325033,0.00019178,2]
[339254795,1727406642403,-501.39593937,0.00019178,2]
[339254796,1727406642412,-502.11687097,0.00019178,2]
[339254797,1727406642421,-597.32,0.00019178,2]
[339254798,1727406642430,-500.0,0.00019178,2]
[339254799,1727406642439,-501.63113708,0.00019178,2]
[339254800,1727406642448,-568.05262198,0.00019178,2]
[339254801,1727406642458,-500.0,0.00019178,2]
[339254802,1727406642467,-500.0,0.00019178,2]
[339254803,1727406642475,-500.0,0.00019178,2]
[339254804,1727406642484,-502.35887065,0.00019178,2]
[339254805,1727406642494,-502.41245971,0.00019178,2]
[339254806,1727406642503,-509.35228594,0.00019178,2]
[339254807,1727406642512,-167.40369893,0.00019178,2]
[339254808,1727406642522,-317.78180645,0.00019178,2]
[339254809,1727406642531,-503.9632168,0.00019178,2]
[339254810,1727406642540,-513.30267835,0.00019178,2]
[339254811,1727406642550,-598.94032415,0.00019178,2]
[339254812,1727406642559,-500.0,0.00019178,2]
[339254813,1727406642568,-500.0,0.00019178,2]
[339254814,1727406642579,-500.0,0.00019178,2]
[339254815,1727406642589,-1756.88,0.00019178,2]
[339254816,1727406642599,-500.0,0.00019178,2]
[339254817,1727406642610,-500.0,0.00019178,2]
[339254818,1727406642620,-500.0,0.00019178,2]
[339254819,1727406642629,-500.0,0.00019178,2]
[339254820,1727406642638,-504.73304,0.00019178,2]
[339254821,1727406642647,-500.0,0.00019178,2]
[339254822,1727406642656,-500.0,0.00019178,2]
[339254823,1727406642665,-501.91466092,0.00019178,2]
[339254824,1727406642674,-500.0,0.00019178,2]
[339254825,1727406642683,-506.87517003,0.00019178,2]
[339254826,1727406642693,-500.0,0.00019178,2]
[339254827,1727406642702,-500.0,0.00019178,2]
[339254828,1727406642711,-506.75925166,0.00019178,2]
[339254829,1727406642720,-500.0,0.00019178,2]
[339254830,1727406642729,-505.93780842,0.00019178,2]
[339254831,1727406642738,-505.36571462,0.00019178,2]
[339254832,1727406642747,-500.0,0.00019178,2]
[339254833,1727406642756,-500.0,0.00019178,2]
[339254834,1727406642765,-504.49232934,0.00019178,2]
[339254835,1727406642774,-500.0,0.00019178,2]
[339254836,1727406642783,-506.59010023,0.00019178,2]
[339254837,1727406642793,-507.06799995,0.00019178,2]
[339254838,1727406642803,-512.94867225,0.00019178,2]
[339254839,1727406642812,-500.0,0.00019178,2]
[339254840,1727406642829,-500.0,0.00019178,2]
[339254841,1727406642842,-497.67729194,0.00019178,2]
[339254842,1727406642857,-500.0,0.00019178,2]
[339254843,1727406642870,-397.52466371,0.00019178,2]
[339254844,1727406642882,-513.9071736,0.00019178,2]
[339254845,1727406642893,-518.11206169,0.00019178,2]
[339254846,1727406642905,-500.0,0.00019178,2]
[339254847,1727406642919,-3674.4,0.00019178,2]
[339254848,1727406642931,-503.88295241,0.00019178,2]
[339254849,1727406642945,-500.0,0.00019178,2]
[339254850,1727406642957,-509.11825541,0.00019178,2]
[339254851,1727406642969,-523.06538209,0.00019178,2]
[339254852,1727406642980,-543.31043458,0.00019178,2]
[339254853,1727406642991,-500.0,0.00019178,2]
[339254854,1727406643004,-500.0,0.00019178,2]
[339254855,1727406643017,-502.62246958,0.00019178,2]
[339254856,1727406643029,-512.01984652,0.00019178,2]
[339254857,1727406643041,-509.55219118,0.00019178,2]
[339254858,1727406643052,-500.0,0.00019178,2]
[339254859,1727406643065,-500.0,0.00019178,2]
[339254860,1727406643076,-484.41885902,0.00019178,2]
[339254861,1727406643089,-500.0,0.00019178,2]
[339254862,1727406643102,-508.78771254,0.00019178,2]
[339254863,1727406643115,-500.0,0.00019178,2]
[339254864,1727406643128,-262.28491804,0.00019178,2]
[339254865,1727406643140,-510.57907973,0.00019178,2]
[339254866,1727406643152,-500.0,0.00019178,2]
[339254867,1727406643163,-511.98867425,0.00019178,2]
[339254868,1727406643174,-169.9404142,0.00019178,2]
[339254869,1727406643187,-504.3754481,0.00019178,2]
[339254870,1727406643200,-503.00449786,0.00019178,2]
[339254871,1727406643211,-532.2860356,0.00019178,2]
[339254872,1727406643222,-504.71657873,0.00019178,2]
[339254873,1727406643234,-157.87579031,0.00019178,2]
[339254874,1727406643247,-510.19479574,0.00019178,2]
[339254875,1727406643259,-519.92179312,0.00019178,2]
[339254876,1727406643270,-603.61750877,0.00019178,2]
[339254877,1727406643283,-458.44976795,0.00019178,2]
[339254878,1727406643295,-413.7038129,0.00019178,2]
[339254879,1727406643307,-500.0,0.00019178,2]
[339254880,1727406643318,-516.82072127,0.00019178,2]
[339254881,1727406643330,-464.26494316,0.00019178,2]
[339254882,1727406643340,-527.97721592,0.00019178,2]
[339254883,1727406643350,-2351.6,0.00019178,2]
[339254884,1727406643360,-506.60099789,0.00019178,2]
[339254885,1727406643370,-500.0,0.00019178,2]
[339254886,1727406643380,-568.52091909,0.00019178,2]
[339254888,1727406643391,-520.55898909,0.00019178,2]
[339254890,1727406643402,-500.0,0.00019178,2]
[339254891,1727406643415,-510.55026176,0.00019178,2]
[339254892,1727406643427,-521.21498956,0.00019178,2]
[339254894,1727406643437,-610.0,0.00019178,2]
[339254895,1727406643447,-500.0,0.00019178,2]
[339254896,1727406643459,-504.39762484,0.00019178,2]
[339254897,1727406643471,-589.14910012,0.00019178,2]
[339254898,1727406643482,-500.0,0.00019178,2]
[339254899,1727406643494,-500.0,0.00019178,2]
[339254900,1727406643506,-500.0,0.00019178,2]
[339254901,1727406643519,-500.0,0.00019178,2]
[339254902,1727406643529,-553.05664782,0.00019178,2]
[339254903,1727406643540,-157.93431139,0.00019178,2]
[339254904,1727406643551,-508.20465973,0.00019178,2]
[339254905,1727406643563,-506.97307135,0.00019178,2]
[339254906,1727406643574,-151.0,0.00019178,2]
[339254907,1727406643586,-472.35053575,0.00019178,2]
[339254908,1727406643596,-561.20569069,0.00019178,2]
[339254909,1727406643607,-517.1205899,0.00019178,2]
[339254910,1727406643618,-500.0,0.00019178,2]
[339254911,1727406643628,-566.83856903,0.00019178,2]
[339254912,1727406643640,-500.0,0.00019178,2]
[339254913,1727406643653,-526.34264009,0.00019178,2]
[339254914,1727406643664,-506.86488071,0.00019178,2]
[339254915,1727406643676,-500.0,0.00019178,2]
[339254916,1727406643688,-513.62200632,0.00019178,2]
[339254917,1727406643701,-598.29239378,0.00019178,2]
[339254918,1727406643713,-500.0,0.00019178,2]
[339254919,1727406643724,-151.0,0.00019178,2]
[339254920,1727406643735,-500.0,0.00019178,2]
[339254921,1727406643745,-500.0,0.00019178,2]
[339254922,1727406643755,-562.45,0.00019178,2]
[339254923,1727406643765,-151.0,0.00019178,2]
[339254924,1727406643776,-225.66907128,0.00019178,2]
[339254925,1727406643786,-526.00384797,0.00019178,2]
[339254927,1727406643799,-508.70404606,0.00019178,2]
[339254928,1727406643810,-484.81701463,0.00019178,2]
[339254930,1727406643823,-500.0,0.00019178,2]
[339254931,1727406643837,-270.846688,0.00019178,2]
[339254932,1727406643849,-256.72957192,0.00019178,2]
[339254933,1727406643859,-500.0,0.00019178,2]
[339254934,1727406643870,-352.01920471,0.00019178,2]
[339254935,1727406643882,-496.31801106,0.00019178,2]
[339254936,1727406643893,-500.0,0.00019178,2]
[339254937,1727406643904,-500.0,0.00019178,2]
[339254938,1727406643915,-600.38907819,0.00019178,2]
[339254939,1727406643926,-500.0,0.00019178,2]
[339254940,1727406643936,-500.0,0.00019178,2]
[339254941,1727406643947,-151.0,0.00019178,2]
[339254942,1727406643957,-500.0,0.00019178,2]
[339254943,1727406643968,-500.0,0.00019178,2]
[339254944,1727406643979,-177.86813188,0.00019178,2]
[339254945,1727406643989,-531.16464479,0.00019178,2]
[339254946,1727406644000,-151.0,0.00019178,2]
[339254947,1727406644011,-19445.46,0.00019178,2]
[339254948,1727406644022,-500.0,0.00019178,2]
[339254949,1727406644033,-500.0,0.00019178,2]
[339254950,1727406644043,-504.92250013,0.00019178,2]
[339254951,1727406644056,-500.0,0.00019178,2]
[339254952,1727406644066,-532.7567702,0.00019178,2]
[339254953,1727406644077,-177.79641467,0.00019178,2]
[339254954,1727406644088,-500.0,0.00019178,2]
[339254955,1727406644099,-500.0,0.00019178,2]
[339254956,1727406644110,-500.0,0.00019178,2]
[339254957,1727406644121,-153.0,0.00019178,2]
[339254958,1727406644131,-180.726052,0.00019178,2]
[339254959,1727406644142,-652.6743941,0.00019178,2]
[339254960,1727406644153,-445.4218728,0.00019178,4]
[339254961,1727406644163,-169.850704,0.00019178,2]
[339254962,1727406644174,-6566.7524842,0.000192,2]
[339254963,1727406644184,-420.0,0.00019211,2]
[339254964,1727406644195,-200.44222355,0.00019314,2]
[339254965,1727406644205,-43044.6914818,0.00019342,3]
[339254966,1727406644217,-38326.214123,0.00019342,3]
[339254967,1727406644227,-3848.0,0.00019352,2]
[339254968,1727406644240,-352.81122636,0.00019352,2]
[339254969,1727406644251,-481.60344118,0.00019385,2]
[339254970,1727406644262,-150.0,0.00019415,2]
[339254971,1727406644273,-151.0,0.00019425,2]
[339254972,1727406644285,-151.0,0.00019425,2]
[339254973,1727406644296,-272.711906,0.00019425,2]
[339254974,1727406644444,-43044.6914818,0.00019425,3]
[339254975,1727406644459,-9159.1500311,0.00019425,3]
[339254976,1727406644653,-500.0,0.00019178,2]
[339254977,1727406644664,-505.33591757,0.00019178,2]
[339254978,1727406644674,-29167.0640919,0.00019425,3]
[339254979,1727406644684,-38326.214123,0.00019442,3]
[339254980,1727406644694,-465.19283477,0.00019448,2]
[339254981,1727406644703,-510.27972244,0.00019452,2]
[339254982,1727406644713,-263.9944114,0.00019452,2]
[339254983,1727406644724,-500.0,0.00019452,2]
[339254984,1727406644736,-500.0,0.00019452,2]
[339254985,1727406644746,-500.0,0.00019452,2]
[339254986,1727406644756,-503.39981811,0.00019452,2]
[339254987,1727406644766,-694.06,0.00019452,2]
[339254988,1727406644775,-500.0,0.00019452,2]
[339254989,1727406644786,-1264.58,0.00019452,2]
[339254990,1727406644797,-500.0,0.00019452,2]
[339254991,1727406644807,-1467.93,0.00019452,2]
[339254992,1727406644818,-500.0,0.00019452,2]
[339254993,1727406644830,-652.08,0.00019452,2]
[339254994,1727406644841,-500.0,0.00019452,2]
[339254995,1727406644851,-1182.03,0.00019452,2]
[339254996,1727406644860,-414.00244945,0.00019452,2]
[339254997,1727406644872,-504.58421127,0.00019452,2]
[339254998,1727406644881,-859.53,0.00019452,2]
[339254999,1727406644891,-500.0,0.00019452,2]
[339255000,1727406644903,-500.0,0.00019452,2]
[339255001,1727406644912,-500.0,0.00019452,2]
[339255002,1727406644921,-507.25366586,0.00019452,2]
[339255003,1727406644931,-500.0,0.00019452,2]
[339255004,1727406644940,-377.7251503,0.00019452,2]
[339255005,1727406644950,-526.07261198,0.00019452,2]
[339255006,1727406644959,-510.47063791,0.00019452,2]
[339255007,1727406644971,-500.0,0.00019452,2]
[339255008,1727406644979,-500.0,0.00019452,2]
[339255009,1727406644989,-1000.0,0.00019452,2]
[339255010,1727406644998,-154.1035987,0.00019452,2]
[339255011,1727406645007,-500.0,0.00019452,2]
[339255012,1727406645019,-500.0,0.00019452,2]
[339255013,1727406645029,-512.88799537,0.00019452,2]
[339255014,1727406645040,-510.71150296,0.00019452,2]
[339255015,1727406645050,-509.06102621,0.00019452,2]
[339255016,1727406645059,-220.05,0.00019452,2]
[339255017,1727406645069,-500.0,0.00019452,2]
[339255018,1727406645078,-2234.67,0.00019452,2]
[339255019,1727406645088,-500.0,0.00019452,2]
[339255020,1727406645099,-502.42366268,0.00019452,2]
[339255021,1727406645108,-597.32,0.00019452,2]
[339255022,1727406645119,-500.0,0.00019452,2]
[339255023,1727406645130,-165.55820456,0.00019452,2]
[339255024,1727406645140,-509.19445995,0.00019452,2]
[339255025,1727406645149,-508.5614065,0.00019452,2]
[339255026,1727406645159,-500.0,0.00019452,2]
[339255027,1727406645168,-500.0,0.00019452,2]
[339255028,1727406645177,-1756.88,0.00019452,2]
[339255029,1727406645186,-342.5325947,0.00019452,2]
[339255030,1727406645195,-500.0,0.00019452,2]
[339255031,1727406645204,-519.56465659,0.00019452,2]
[339255032,1727406645213,-503.51736652,0.00019452,2]
[339255033,1727406645222,-554.68958909,0.00019452,2]
[339255034,1727406645231,-504.21684201,0.00019452,2]
[339255035,1727406645241,-313.98973406,0.00019452,2]
[339255036,1727406645251,-505.32202519,0.00019452,2]
[339255037,1727406645260,-500.0,0.00019452,2]
[339255038,1727406645269,-500.0,0.00019452,2]
[339255039,1727406645278,-500.0,0.00019452,2]
[339255040,1727406645288,-500.0,0.00019452,2]
[339255041,1727406645298,-500.0,0.00019452,2]
[339255042,1727406645308,-500.0,0.00019452,2]
[339255043,1727406645317,-3674.4,0.00019452,2]
[339255044,1727406645326,-626.93950403,0.00019452,2]
[339255045,1727406645335,-500.0,0.00019452,2]
[339255046,1727406645345,-614.41819999,0.00019452,2]
[339255047,1727406645354,-198.40069538,0.00019452,2]
[339255048,1727406645363,-172.52427923,0.00019452,2]
[339255049,1727406645373,-511.40507203,0.00019452,2]
[339255050,1727406645384,-511.24234283,0.00019452,2]
[339255051,1727406645393,-500.0,0.00019452,2]
[339255052,1727406645404,-2351.6,0.00019452,2]
[339255053,1727406645416,-500.0,0.00019452,2]
[339255054,1727406645425,-511.90092699,0.00019452,2]
[339255055,1727406645435,-500.0,0.00019452,2]
[339255056,1727406645444,-507.47233672,0.00019452,2]
[339255057,1727406645453,-500.0,0.00019452,2]
[339255058,1727406645462,-507.9605638,0.00019452,2]
[339255059,1727406645471,-500.0,0.00019452,2]
[339255060,1727406645480,-562.45,0.00019452,2]
[339255061,1727406645490,-500.0,0.00019452,2]
[339255062,1727406645499,-408.20000064,0.00019452,2]
[339255063,1727406645509,-151.0,0.00019452,2]
[339255064,1727406645519,-504.40958455,0.00019452,2]
[339255065,1727406645529,-9885.30285569,0.00019452,2]
[339255066,1727406645793,-39.2746882,0.00019452,2]
[339255067,1727406645851,-1994.65853732,0.00019452,2]
[339255069,1727406646810,-447.32939669,0.00019178,2]
[339255073,1727406646843,-35.14680845,0.00019178,2]
[339255145,1727407645139,-150.0,0.00016,2]
[339255146,1727407645161,-166.6666669,0.0001718,2]
[339255147,1727407645184,-299.153233,0.0001755,2]
[339255148,1727407645208,-1403.6806753,0.00017587,2]
[339255149,1727407648126,-6574.9406116,0.00017587,2]
[339255150,1727407648151,-173.2527229,0.0001782,2]
[339255151,1727407648173,-465.07026499,0.0001786,2]
[339255152,1727407648195,-300.0,0.0001815,2]
[339255153,1727407648217,-300.0,0.0001815,2]
[339255154,1727407648239,-401.94094105,0.00018154,2]
[339255155,1727407649139,-98.05905895,0.00018154,2]
[339255156,1727407649161,-500.0,0.00018154,2]
[339255157,1727407649183,-500.0,0.00018355,2]
[339255158,1727407649204,-500.0,0.0001838,2]
[339255159,1727407649226,-465.00351325,0.00018753,2]
[339255160,1727407649247,-22.76455461,0.00018901,2]
[339255161,1727407652113,-127.23544539,0.00018901,2]
[339255162,1727407652137,-547.76455461,0.00018902,2]
[339255219,1727407838077,-41.71342633,0.00018904,2]
[339255346,1727407840050,-125.52934667,0.00018904,2]
[339255347,1727407840060,-306.0,0.00019,2]
[339255348,1727407840070,-209.1919512,0.00019,2]
[339255349,1727407840081,-504.35926333,0.00019,2]
[339255350,1727407840091,-300.0,0.00019156,2]
[339255351,1727407840101,-300.0,0.00019156,2]
[339255352,1727407840110,-669.2,0.00019158,3]
[339255353,1727407840121,-500.0,0.00019167,2]
[339255354,1727407840131,-276.90895978,0.00019167,2]
[339255355,1727407840142,-279.18639903,0.00019167,2]
[339255356,1727407840152,-455.12252533,0.00019167,2]
[339255357,1727407840162,-500.0,0.00019167,2]
[339255358,1727407840172,-180.22543815,0.00019167,2]
[339255359,1727407840182,-304.00089645,0.00019167,2]
[339255360,1727407840193,-500.0,0.00019167,2]
[339255361,1727407840202,-500.0,0.00019167,2]
[339255362,1727407840211,-500.0,0.00019167,2]
[339255363,1727407840222,-183.84048661,0.00019167,2]
[339255364,1727407840233,-500.0,0.00019167,2]
[339255365,1727407840242,-500.0,0.00019167,2]
[339255366,1727407840252,-500.0,0.00019167,2]
[339255367,1727407840261,-500.0,0.00019167,2]
[339255368,1727407840270,-500.0,0.00019167,2]
[339255369,1727407840279,-608.6680669,0.00019167,2]
[339255370,1727407840292,-500.0,0.00019167,2]
[339255371,1727407840301,-500.0,0.00019167,2]
[339255372,1727407840310,-500.0,0.00019167,2]
[339255373,1727407840319,-311.1647672,0.00019167,2]
[339255374,1727407840331,-188.8352328,0.00019167,2]
[339255375,1727407840340,-500.0,0.00019167,2]
[339255376,1727407840350,-500.0,0.00019167,2]
[339255377,1727407840359,-500.0,0.00019167,2]
[339255378,1727407840368,-500.0,0.00019167,2]
[339255379,1727407840378,-500.0,0.00019167,2]
[339255380,1727407840387,-500.0,0.00019167,2]
[339255381,1727407840397,-5198.05232477,0.00019168,3]
[339255382,1727407840410,-59368.98489793,0.00019168,3]
[339255383,1727407840419,-53698.9401222,0.00019168,3]
[339255384,1727407840428,-500.0,0.00019173,2]
[339255385,1727407840437,-500.0,0.00019173,2]
[339255386,1727407840447,-500.0,0.00019178,2]
[339255387,1727407840456,-500.0,0.00019178,2]
[339255388,1727407840469,-517.7458574,0.00019178,2]
[339255389,1727407840634,-500.0,0.00019178,2]
[339255390,1727407840643,-504.43924134,0.00019178,2]
[339255391,1727407840653,-500.0,0.00019178,2]
[339255392,1727407840662,-500.0,0.00019178,2]
[339255393,1727407840671,-500.0,0.00019178,2]
[339255394,1727407840682,-500.0,0.00019178,2]
[339255395,1727407840694,-500.0,0.00019178,2]
[339255396,1727407840703,-505.47306469,0.00019178,2]
[339255397,1727407840713,-500.0,0.00019178,2]
[339255398,1727407840722,-500.0,0.00019178,2]
[339255399,1727407840732,-504.44823372,0.00019178,2]
[339255400,1727407840741,-500.0,0.00019178,2]
[339255401,1727407840752,-500.0,0.00019178,2]
[339255402,1727407840762,-1000.0,0.00019178,2]
[339255403,1727407840773,-509.92699727,0.00019178,2]
[339255404,1727407840784,-506.5671775,0.00019178,2]
[339255405,1727407840795,-500.0,0.00019178,2]
[339255406,1727407840805,-504.301689,0.00019178,2]
[339255407,1727407840815,-510.52814387,0.00019178,2]
[339255408,1727407840824,-503.73732409,0.00019178,2]
[339255409,1727407840834,-503.63707512,0.00019178,2]
[339255410,1727407840844,-438.24229567,0.00019178,2]
[339255411,1727407840853,-621.71854752,0.00019178,2]
[339255412,1727407840863,-500.0,0.00019178,2]
[339255413,1727407840873,-286.42954028,0.00019178,2]
[339255414,1727407840884,-500.0,0.00019178,2]
[339255415,1727407840895,-510.45469994,0.00019178,2]
[339255416,1727407840905,-201.71,0.00019178,2]
[339255417,1727407840914,-502.25459289,0.00019178,2]
[339255418,1727407840923,-500.0,0.00019178,2]
[339255419,1727407840932,-506.47387956,0.00019178,2]
[339255420,1727407840941,-500.0,0.00019178,2]
[339255421,1727407840950,-624.19467706,0.00019178,2]
[339255422,1727407840959,-507.60765609,0.00019178,2]
[339255423,1727407840969,-508.5614065,0.00019178,2]
[339255424,1727407840978,-500.96900052,0.00019178,2]
[339255425,1727407840988,-500.0,0.00019178,2]
[339255426,1727407840999,-505.87965917,0.00019178,2]
[339255427,1727407841009,-576.96590482,0.00019178,2]
[339255428,1727407841019,-503.66934172,0.00019178,2]
[339255429,1727407841028,-503.39237662,0.00019178,2]
[339255430,1727407841038,-504.53655273,0.00019178,2]
[339255431,1727407841047,-500.0,0.00019178,2]
[339255432,1727407841056,-516.14742488,0.00019178,2]
[339255433,1727407841066,-500.0,0.00019178,2]
[339255434,1727407841075,-2145.51,0.00019178,2]
[339255435,1727407841084,-547.54,0.00019178,2]
[339255436,1727407841093,-510.23012474,0.00019178,2]
[339255437,1727407841103,-500.0,0.00019178,2]
[339255438,1727407841112,-501.95348336,0.00019178,2]
[339255439,1727407841121,-342.5325947,0.00019178,2]
[339255440,1727407841131,-500.0,0.00019178,2]
[339255441,1727407841140,-500.0,0.00019178,2]
[339255442,1727407841150,-504.21684201,0.00019178,2]
[339255443,1727407841159,-500.0,0.00019178,2]
[339255444,1727407841169,-500.0,0.00019178,2]
[339255445,1727407841178,-500.0,0.00019178,2]
[339255446,1727407841187,-500.0,0.00019178,2]
[339255447,1727407841197,-519.56465659,0.00019178,2]
[339255448,1727407841206,-505.93780842,0.00019178,2]
[339255449,1727407841215,-505.36571462,0.00019178,2]
[339255450,1727407841226,-554.68958909,0.00019178,2]
[339255451,1727407841236,-504.57965744,0.00019178,2]
[339255452,1727407841247,-500.0,0.00019178,2]
[339255453,1727407841257,-504.49232934,0.00019178,2]
[339255454,1727407841266,-522.10456009,0.00019178,2]
[339255455,1727407841276,-500.0,0.00019178,2]
[339255456,1727407841286,-506.59010023,0.00019178,2]
[339255457,1727407841295,-507.06799995,0.00019178,2]
[339255458,1727407841305,-500.0,0.00019178,2]
[339255459,1727407841315,-506.75925166,0.00019178,2]
[339255460,1727407841324,-512.94867225,0.00019178,2]
[339255461,1727407841334,-500.0,0.00019178,2]
[339255462,1727407841343,-500.0,0.00019178,2]
[339255463,1727407841352,-500.0,0.00019178,2]
[339255464,1727407841362,-500.0,0.00019178,2]
[339255465,1727407841372,-500.0,0.00019178,2]
[339255466,1727407841381,-511.82620235,0.00019178,2]
[339255467,1727407841392,-568.45217455,0.00019178,2]
[339255468,1727407841402,-503.28609664,0.00019178,2]
[339255469,1727407841413,-497.67729194,0.00019178,2]
[339255470,1727407841423,-510.19242227,0.00019178,2]
[339255471,1727407841434,-512.31691537,0.00019178,2]
[339255472,1727407841443,-502.42042241,0.00019178,2]
[339255473,1727407841453,-500.0,0.00019178,2]
[339255474,1727407841466,-500.0,0.00019178,2]
[339255475,1727407841477,-518.11206169,0.00019178,2]
[339255476,1727407841487,-500.0,0.00019178,2]
[339255477,1727407841496,-500.0,0.00019178,2]
[339255478,1727407841507,-500.0,0.00019178,2]
[339255479,1727407841516,-500.0,0.00019178,2]
[339255480,1727407841525,-509.55219118,0.00019178,2]
[339255481,1727407841535,-532.2860356,0.00019178,2]
[339255482,1727407841546,-165.55820456,0.00019178,2]
[339255483,1727407841557,-511.98867425,0.00019178,2]
[339255484,1727407841566,-1756.88,0.00019178,2]
[339255485,1727407841576,-603.61750877,0.00019178,2]
[339255486,1727407841586,-504.39762484,0.00019178,2]
[339255487,1727407841606,-500.0,0.00019178,2]
[339255488,1727407841616,-508.20465973,0.00019178,2]
[339255489,1727407841625,-500.0,0.00019178,2]
[339255490,1727407841635,-500.0,0.00019178,2]
[339255491,1727407841648,-506.86488071,0.00019178,2]
[339255492,1727407841657,-500.0,0.00019178,2]
[339255493,1727407841667,-484.81701463,0.00019178,2]
[339255494,1727407841677,-500.0,0.00019178,2]
[339255495,1727407841687,-352.01920471,0.00019178,2]
[339255496,1727407841697,-508.70404606,0.00019178,2]
[339255497,1727407841708,-500.0,0.00019178,2]
[339255498,1727407841718,-500.0,0.00019178,2]
[339255499,1727407841728,-397.52466371,0.00019178,2]
[339255500,1727407841740,-500.0,0.00019178,2]
[339255501,1727407841750,-263.9944114,0.00019178,2]
[339255502,1727407841760,-500.0,0.00019178,2]
[339255503,1727407841770,-500.0,0.00019178,2]
[339255504,1727407841780,-500.0,0.00019178,2]
[339255505,1727407841789,-500.0,0.00019178,2]
[339255506,1727407841799,-513.9071736,0.00019178,2]
[339255507,1727407841809,-504.92250013,0.00019178,2]
[339255508,1727407841819,-500.0,0.00019178,2]
[339255509,1727407841828,-510.27972244,0.00019178,2]
[339255510,1727407841837,-500.0,0.00019178,2]
[339255511,1727407841847,-503.88295241,0.00019178,2]
[339255512,1727407841856,-496.31801106,0.00019178,2]
[339255513,1727407841866,-500.0,0.00019178,2]
[339255514,1727407841878,-509.11825541,0.00019178,2]
[339255515,1727407841889,-177.86813188,0.00019178,2]
[339255516,1727407841901,-500.0,0.00019178,2]
[339255517,1727407841913,-523.06538209,0.00019178,2]
[339255518,1727407841924,-500.0,0.00019178,2]
[339255519,1727407841934,-177.79641467,0.00019178,2]
[339255520,1727407841946,-502.62246958,0.00019178,2]
[339255521,1727407841955,-512.01984652,0.00019178,2]
[339255522,1727407841965,-3674.4,0.00019178,2]
[339255523,1727407841974,-500.0,0.00019178,2]
[339255524,1727407841983,-500.0,0.00019178,2]
[339255525,1727407841993,-484.41885902,0.00019178,2]
[339255526,1727407842003,-500.0,0.00019178,2]
[339255527,1727407842013,-500.0,0.00019178,2]
[339255528,1727407842023,-510.57907973,0.00019178,2]
[339255529,1727407842033,-508.78771254,0.00019178,2]
[339255530,1727407842043,-500.0,0.00019178,2]